Workbook

Sheet Gear List
A1: Gear List | J1: Pack Weight in LBS: | K1: Extra Gear weight in LBS:
A2: Number of: | B2: Item | C2: Item Weight in oz. | D2: Item Description | E2: In main Pack | F2: On Person or second pack | G2: Total packed weight of item in Oz. | H2: Total weight of item in Lbs. | I2: Packed Weight in Oz: | J2: =I306 -> 72.80 | K2: =SUM(K3:K283) -> 14.09 | M2: Where to pack it
A3: Pack
A4: 0 | B4: Backpack | C4: 86 | D4: 60 liter Osprey pack (with Rain cover) | E4: 1 | G4: =IF(E4=1,A4*C4,0) -> 0.00 | H4: =G4/16 -> 0.00 | I4: =G4 -> 0.00 | K4: =IF(F4>=1,(A4*C4)/16,0) -> 0.00 | M4: BP | N4: =_xlfn.XLOOKUP($M4,$A$319:$A$336,$B$319:$B$336,"Not Found") -> BackPack
A5: 0 | B5: Dry Pack | C5: 44 | D5: 32 L Earth Pack | F5: 3 | G5: =IF(E5=1,A5*C5,0) -> 0.00 | H5: =G5/16 -> 0.00 | I5: =G5 -> 0.00 | K5: =IF(F5>=1,(A5*C5)/16,0) -> 0.00 | M5: FP | N5: Food Pack / Barrel
A6: 1 | B6: Dry Pack | C6: 45 | D6: 55 L Earth Pack | E6: 1 | G6: =IF(E6=1,A6*C6,0) -> 45.40 | H6: =G6/16 -> 2.84 | I6: =G6 -> 45.40 | K6: =IF(F6>=1,(A6*C6)/16,0) -> 2.84 | M6: BP | N6: BackPack
A7: 0 | B7: Large Yellow Dry Pack | C7: 48 | D7: Large Yellow Dry Pack | F7: 3 | G7: =IF(E7=1,A7*C7,0) -> 0.00 | H7: =G7/16 -> 0.00 | I7: =G7 -> 0.00 | K7: =IF(F7>=1,(A7*C7)/16,0) -> 0.00 | M7: FP | N7: Food Pack / Barrel
A8: 1 | B8: Dry Compression sac | C8: 2 | D8: 2X Small Sea to Summit Dry Compression Sac | E8: 1 | G8: =IF(E8=1,A8*C8,0) -> 1.80 | H8: =G8/16 -> 0.11 | I8: =G8 -> 1.80 | K8: =IF(F8>=1,(A8*C8)/16,0) -> 0.00 | M8: XC | N8: XXS Compression Sack
A9: 1 | B9: Dry Compression sac | C9: 3 | D9: Small Sea to Summit Dry Compression Sac | E9: 1 | G9: 2.60 | H9: 0.16 | I9: 2.60 | K9: 0.00 | M9: SC | N9: Small Compression Sack
A10: 1 | B10: Dry Compression sac | C10: 5 | D10: Med Sea to Summit Dry Compression Sac | E10: 1 | G10: 5.20 | H10: 0.33 | I10: 5.20 | K10: 0.00 | M10: MC | N10: Medium Compression sack
A11: 1 | B11: Stoic Dry Bag | C11: 3 | D11: Blue Dry Bag | E11: 1 | G11: 3.40 | H11: 0.21 | I11: 3.40 | K11: 0.00 | M11: BS | N11: Blue Stuff Sack
A12: 1 | B12: Stoic Dry Bag | C12: 7 | D12: Orange Dry Bag | E12: 1 | G12: 6.50 | H12: 0.41 | I12: 6.50 | K12: 0.00 | M12: OS | N12: Orange Stuff Sack
A13: 0 | B13: Walking stick | C13: 12 | D13: SwissGear walking stick (Dad's) | F13: 1 | G13: 0.00 | H13: 0.00 | I13: 0.00 | K13: 0.00 | M13: BP | N13: BackPack
A14: 0 | B14: Walking sticks | C14: 15 | D14: The FitLife walking sticks (Carbon - Pair - No baskets) | F14: 1 | G14: 0.00 | H14: 0.00 | I14: 0.00 | K14: 0.00 | M14: BP | N14: BackPack
A15: 1 | B15: Yellow Dry Bag | C15: 21 | D15: Heavy Yellow Dry Bag | F15: 3 | G15: 0.00 | H15: 0.00 | I15: 0.00 | K15: 1.31 | M15: FP | N15: Food Pack / Barrel
A16: Sleeping bag
A17: 0 | B17: Compression sac for cats meow bag | C17: 2 | D17: NorthFace Cat's Meow compression sac | E17: 1 | G17: =IF(E17=1,A17*C17,0) -> 0.00 | H17: =G17/16 -> 0.00 | I17: =G17 -> 0.00 | K17: =IF(F17>=1,(A17*C17)/16,0) -> 0.00 | M17: PJ | N17: =_xlfn.XLOOKUP($M17,$A$319:$A$336,$B$319:$B$336,"Not Found") -> Sleeping Bag Stuff Sack
A18: 0 | B18: Mummy Bag | C18: 54 | D18: Wool Mummy bag - 3.5 lbs | E18: 1 | G18: =IF(E18=1,A18*C18,0) -> 0.00 | H18: =G18/16 -> 0.00 | I18: =G18 -> 0.00 | K18: =IF(F18>=1,(A18*C18)/16,0) -> 0.00 | M18: PJ | N18: Sleeping Bag Stuff Sack
A19: 0 | B19: Mummy Bag | C19: 63 | D19: Down Mummy bag - Could be used for Under Quilt | E19: 1 | G19: 0.00 | H19: 0.00 | I19: 0.00 | K19: 0.00 | M19: PJ | N19: Sleeping Bag Stuff Sack
A20: 1 | B20: Bed Sheet | C20: 16 | D20: Bed Sheet | E20: 1 | G20: =IF(E20=1,A20*C20,0) -> 16.00 | H20: =G20/16 -> 1.00 | I20: =G20 -> 16.00 | K20: =IF(F20>=1,(A20*C20)/16,0) -> 0.00 | M20: PJ | N20: Sleeping Bag Stuff Sack
A21: 1 | B21: Sleeping bag | C21: 34 | D21: NorthFace Cat's Meow Sleeping Bag | E21: 1 | G21: 34.00 | H21: 2.13 | I21: 34.00 | K21: 0.00 | M21: PJ | N21: Sleeping Bag Stuff Sack
A22: 0 | B22: Sleeping bag | C22: 107 | D22: Heavy Sleeping bag 6.71 lbs | E22: 1 | G22: 0.00 | H22: 0.00 | I22: 0.00 | K22: 0.00 | M22: PJ | N22: Sleeping Bag Stuff Sack
A23: 0 | B23: Sleeping bag | C23: 83 | D23: Light weight Sleeping bag 5.16 lbs | E23: 1 | G23: 0.00 | H23: 0.00 | I23: 0.00 | K23: 0.00 | M23: PJ | N23: Sleeping Bag Stuff Sack
A24: Sleeping pad
A25: 1 | B25: Sleeping Pad | C25: 22 | D25: Thermarest Trail Scout Regular | E25: 1 | G25: =IF(E25=1,A25*C25,0) -> 22.00 | H25: =G25/16 -> 1.38 | I25: =G25 -> 22.00 | K25: =IF(F25>=1,(A25*C25)/16,0) -> 0.00 | M25: BP | N25: =_xlfn.XLOOKUP($M25,$A$319:$A$336,$B$319:$B$336,"Not Found") -> BackPack
A26: Shelter
A27: 1 | B27: Hammock | C27: 22 | D27: Hennessey Ultra-Light Hammock, with stuff sack but NO Tarp | E27: 1 | G27: =IF(E27=1,A27*C27,0) -> 22.30 | H27: =G27/16 -> 1.39 | I27: =G27 -> 22.30 | K27: =IF(F27>=1,(A27*C27)/16,0) -> 0.00 | M27: BP | N27: =_xlfn.XLOOKUP($M27,$A$319:$A$336,$B$319:$B$336,"Not Found") -> BackPack
A28: 1 | B28: Hammock Hardware | C28: 9 | D28: Hammock Hanging Hardware (2 bieners & 4 rap rings) | E28: 1 | G28: =IF(E28=1,A28*C28,0) -> 9.10 | H28: =G28/16 -> 0.57 | I28: =G28 -> 9.10 | K28: =IF(F28>=1,(A28*C28)/16,0) -> 0.00 | M28: BP | N28: BackPack
A29: 1 | B29: Tent/tarp pegs | C29: 87 | D29: Renee's tent | E29: 1 | G29: =IF(E29=1,A29*C29,0) -> 87.00 | H29: =G29/16 -> 5.44 | I29: =G29 -> 87.00 | K29: =IF(F29>=1,(A29*C29)/16,0) -> 0.00 | M29: BP | N29: BackPack
A30: 0 | B30: Hammock Straps - Short | C30: 1 | D30: Hammock Hanging straps - 2 short straps | E30: 1 | G30: 0.00 | H30: 0.00 | I30: 0.00 | K30: 0.00 | M30: BP | N30: BackPack
A31: 1 | B31: Rallt Tree Straps | C31: 12 | D31: Rallt Tree hammock hanging straps long - set of 2 straps | E31: 1 | G31: 12.10 | H31: 0.76 | I31: 12.10 | K31: 0.00 | M31: BP | N31: BackPack
A32: 1 | B32: Tarp | C32: 24 | D32: Hennessey SiNylon tarp - Hex Fly + Snake Skins - Hammock cover | E32: 1 | G32: 23.80 | H32: 1.49 | I32: 23.80 | K32: 0.00 | M32: SC | N32: Small Compression Sack
A33: 1 | B33: Tarp | C33: 24 | D33: Hennessey SiNylon tarp - Hex Fly + Snake Skins - Camp Tarp | E33: 1 | G33: 23.80 | H33: 1.49 | I33: 23.80 | K33: 0.00 | M33: SC | N33: Small Compression Sack
A34: 0 | B34: Tarp | C34: 12 | D34: Hennessey SiNylon tarp - Small Hammock Cover - Original to Hammock | E34: 1 | G34: 0.00 | H34: 0.00 | I34: 0.00 | K34: 0.00 | M34: BP | N34: BackPack
A35: 0 | B35: Tarp | C35: 43 | D35: Lowes Plastic/Nylon Tarp W/ParaCord | E35: 1 | G35: 0.00 | H35: 0.00 | I35: 0.00 | K35: 0.00 | M35: BP | N35: BackPack
A36: 10 | B36: Tent/tarp pegs | C36: 1 | D36: Tent Stake(s) | E36: 1 | G36: 5.00 | H36: 0.31 | I36: 5.00 | K36: 0.00 | M36: BP | N36: BackPack
A37: 1 | B37: Undercover for Hammock | C37: 6 | D37: UnderCover for Hammock | E37: 1 | G37: 5.75 | H37: 0.36 | I37: 5.75 | K37: 0.00 | M37: BP | N37: BackPack
A38: 1 | B38: UnderQuilt for Hammock | C38: 11 | D38: Underpad (aka underquilt) - With Stuff Sack | E38: 1 | G38: 10.95 | H38: 0.68 | I38: 10.95 | K38: 0.00 | M38: BP | N38: BackPack
A39: Rain gear
A40: 1 | B40: Pant | C40: 10 | D40: Rain Gear (Pants) | E40: 1 | G40: =IF(E40=1,A40*C40,0) -> 9.90 | H40: =G40/16 -> 0.62 | I40: =G40 -> 9.90 | K40: =IF(F40>=1,(A40*C40)/16,0) -> 0.00 | M40: BP | N40: =_xlfn.XLOOKUP($M40,$A$319:$A$336,$B$319:$B$336,"Not Found") -> BackPack
A41: 0 | B41: Top | C41: 12 | D41: Rain Gear (Top) Red Ledge jacket | E41: 1 | G41: =IF(E41=1,A41*C41,0) -> 0.00 | H41: =G41/16 -> 0.00 | I41: =G41 -> 0.00 | K41: =IF(F41>=1,(A41*C41)/16,0) -> 0.00 | M41: BP | N41: =_xlfn.XLOOKUP($M41,$A$319:$A$336,$B$319:$B$336,"Not Found") -> BackPack
A42: 1 | B42: Top | C42: 11 | D42: Rain Gear (Top) Stohlquist spray jacket | E42: 1 | G42: 11.00 | H42: 0.69 | I42: 11.00 | K42: 0.00 | M42: BP | N42: =_xlfn.XLOOKUP($M42,$A$319:$A$336,$B$319:$B$336,"Not Found") -> BackPack
A43: 1 | B43: Dry Suite | C43: 29 | D43: Kokatat Dry Suite | E43: 1 | G43: =IF(E43=1,A43*C43,0) -> 29.40 | H43: =G43/16 -> 1.84 | I43: =G43 -> 29.40 | K43: =IF(F43>=1,(A43*C43)/16,0) -> 0.00 | M43: BP | N43: =_xlfn.XLOOKUP($M43,$A$319:$A$336,$B$319:$B$336,"Not Found") -> BackPack
A44: Stove
A45: 0 | B45: Alcohol Stove | C45: 6 | D45: OutAD Alcohol stove | E45: 1 | G45: =IF(E45=1,A45*C45,0) -> 0.00 | H45: =G45/16 -> 0.00 | I45: =G45 -> 0.00 | K45: =IF(F45>=1,(A45*C45)/16,0) -> 0.00 | M45: BP | N45: =_xlfn.XLOOKUP($M45,$A$319:$A$336,$B$319:$B$336,"Not Found") -> BackPack
A46: 1 | B46: Stove | C46: 13 | D46: MSR WhisperLite Stove | E46: 1 | G46: =IF(E46=1,A46*C46,0) -> 12.60 | H46: =G46/16 -> 0.79 | I46: =G46 -> 12.60 | K46: =IF(F46>=1,(A46*C46)/16,0) -> 0.00 | M46: BP | N46: =_xlfn.XLOOKUP($M46,$A$319:$A$336,$B$319:$B$336,"Not Found") -> BackPack
A47: 0 | B47: Twig Stove | C47: 5 | D47: Emberlit-UL Backpacking stove | E47: 1 | G47: 0.00 | H47: 0.00 | I47: 0.00 | K47: 0.00 | M47: BP | N47: =_xlfn.XLOOKUP($M47,$A$319:$A$336,$B$319:$B$336,"Not Found") -> BackPack
A48: 1 | B48: Wind Screen | C48: 1 | D48: Titanium Wind Screen | E48: 1 | G48: 0.80 | H48: 0.05 | I48: 0.80 | K48: 0.00 | M48: BP | N48: =_xlfn.XLOOKUP($M48,$A$319:$A$336,$B$319:$B$336,"Not Found") -> BackPack
A49: 0 | C49: 0 | G49: 0.00 | H49: 0.00 | I49: 0.00 | K49: 0.00 | M49: BP | N49: =_xlfn.XLOOKUP($M49,$A$319:$A$336,$B$319:$B$336,"Not Found") -> BackPack
A50: Fuel
A51: 0 | B51: Alcohol | C51: 16 | D51: Total Volume of Alcohol in proper container(s) | E51: 1 | G51: =IF(E51=1,A51*C51,0) -> 0.00 | H51: =G51/16 -> 0.00 | I51: =G51 -> 0.00 | K51: =IF(F51>=1,(A51*C51)/16,0) -> 0.00 | M51: BP | N51: =_xlfn.XLOOKUP($M51,$A$319:$A$336,$B$319:$B$336,"Not Found") -> BackPack
A52: 0 | B52: Alcohol fuel bottle | C52: 1 | D52: Twin Neck Fuel bottle | E52: 1 | G52: =IF(E52=1,A52*C52,0) -> 0.00 | H52: =G52/16 -> 0.00 | I52: =G52 -> 0.00 | K52: =IF(F52>=1,(A52*C52)/16,0) -> 0.00 | M52: BP | N52: =_xlfn.XLOOKUP($M52,$A$319:$A$336,$B$319:$B$336,"Not Found") -> BackPack
A53: 0 | B53: Alcohol Fuel Bottle | C53: 8 | D53: Alcohol small container | E53: 1 | G53: 0.00 | H53: 0.00 | I53: 0.00 | K53: 0.00 | M53: BP | N53: =_xlfn.XLOOKUP($M53,$A$319:$A$336,$B$319:$B$336,"Not Found") -> BackPack
A54: 2 | B54: Camp Fuel | C54: 28 | D54: 20 Fl. Oz. MSR Fuel Bottles - Full | E54: 1 | G54: 56.00 | H54: 3.50 | I54: 56.00 | K54: 0.00 | M54: BP | N54: =_xlfn.XLOOKUP($M54,$A$319:$A$336,$B$319:$B$336,"Not Found") -> BackPack
A55: Eating:
A56: 0 | B56: Camp Oven | C56: 14 | D56: Camp Oven - Old BSA Mess Kit | E56: 1 | G56: =IF(E56=1,A56*C56,0) -> 0.00 | H56: =G56/16 -> 0.00 | I56: =G56 -> 0.00 | K56: =IF(F56>=1,(A56*C56)/16,0) -> 0.00 | M56: FP | N56: =_xlfn.XLOOKUP($M56,$A$319:$A$336,$B$319:$B$336,"Not Found") -> Food Pack / Barrel
A57: 4 | B57: Chop Sticks | C57: 0 | D57: Chop Sticks | E57: 1 | G57: =IF(E57=1,A57*C57,0) -> 1.20 | H57: =G57/16 -> 0.08 | I57: =G57 -> 1.20 | K57: =IF(F57>=1,(A57*C57)/16,0) -> 0.00 | M57: BP | N57: BackPack
A58: 0 | B58: Cutting Board | C58: 1 | D58: Plastic cutting board | F58: 3 | G58: 0.00 | H58: 0.00 | I58: 0.00 | K58: 0.00 | M58: FP | N58: Food Pack / Barrel
A59: 0 | B59: Egg Carton | C59: 4 | D59: 1 Doz Plastic Egg Carton (empty) | F59: 3 | G59: 0.00 | H59: 0.00 | I59: 0.00 | K59: 0.00 | M59: FP | N59: Food Pack / Barrel
A60: 1 | B60: Egg Carton | C60: 2 | D60: 1/2 Doz Plastic Egg Carton (empty) | F60: 3 | G60: =IF(E60=1,A60*C60,0) -> 0.00 | H60: =G60/16 -> 0.00 | I60: =G60 -> 0.00 | K60: =IF(F60>=1,(A60*C60)/16,0) -> 0.13 | M60: FP | N60: Food Pack / Barrel
A61: 1 | B61: GSI Personal Java Press | C61: 11 | D61: GSI Personal Java Press | E61: 1 | G61: 10.80 | H61: 0.68 | I61: 10.80 | K61: 0.00 | M61: BP | N61: BackPack
A62: 0 | B62: Health Pro | C62: 3 | D62: 400 ml Fry Pan (Titanium) Approx 13.5 oz | E62: 1 | G62: 0.00 | H62: 0.00 | I62: 0.00 | K62: 0.00 | M62: BP | N62: BackPack
A63: 0 | B63: Health Pro | C63: 4 | D63: 1.2 L pot (Titanium) Approx 40 oz | E63: 1 | G63: 0.00 | H63: 0.00 | I63: 0.00 | K63: 0.00 | M63: BP | N63: BackPack
A64: 0 | B64: Health Pro | C64: 4 | D64: 800 ml pot (Titanium) Approx 27 oz | E64: 1 | G64: 0.00 | H64: 0.00 | I64: 0.00 | K64: 0.00 | M64: BP | N64: BackPack
A65: 0 | B65: Silicon Bread pans | C65: 16 | D65: Leukue Silicone bread pans | E65: 1 | G65: 0.00 | H65: 0.00 | I65: 0.00 | K65: 0.00 | M65: FP | N65: Food Pack / Barrel
A66: 0 | B66: Measuring Cup | C66: 1 | D66: Plastic Measuring Cup | E66: 1 | G66: 0.00 | H66: 0.00 | I66: 0.00 | K66: 0.00 | M66: BP | N66: BackPack
A67: 0 | B67: Grille Mat | C67: 1 | D67: Copper grill Mat (ea.) (I have 5) | F67: 3 | G67: 0.00 | H67: 0.00 | I67: 0.00 | K67: 0.00 | M67: FP | N67: Food Pack / Barrel
A68: 0 | B68: Food Brush | C68: 1 | D68: Silicone Food Brush | F68: 3 | G68: 0.00 | H68: 0.00 | I68: 0.00 | K68: 0.00 | M68: FP | N68: Food Pack / Barrel
A69: 1 | B69: Pot Cozy | C69: 2 | D69: DIY pot Cozy - SnowPeak | E69: 1 | G69: 1.90 | H69: 0.12 | I69: 1.90 | K69: 0.00 | M69: BP | N69: BackPack
A70: 0 | B70: Pot Cozy | C70: 2 | D70: DIY pot Cozy - HealthPro 1.2l | E70: 1 | G70: 0.00 | H70: 0.00 | I70: 0.00 | K70: 0.00 | M70: BP | N70: BackPack
A71: 0 | B71: Pot Cozy | C71: 2 | D71: DIY pot Cozy - HealthPro 800ml | E71: 1 | G71: 0.00 | H71: 0.00 | I71: 0.00 | K71: 0.00 | M71: BP | N71: BackPack
A72: 1 | B72: Pot Lifter | C72: 2 | D72: Pot Lifter | E72: 1 | G72: 1.50 | H72: 0.09 | I72: 1.50 | K72: 0.00 | M72: BP | N72: BackPack
A73: 1 | B73: Mess Kit | C73: 45 | D73: Mess Kit - Fry pan, 2 pots 3 cups | E73: 1 | G73: 45.20 | H73: 2.83 | I73: 45.20 | K73: 0.00 | M73: BP | N73: BackPack
A74: 0 | B74: Silverware | C74: 0 | D74: Spork | E74: 1 | G74: 0.00 | H74: 0.00 | I74: 0.00 | K74: 0.00 | M74: BP | N74: BackPack
A75: 0 | B75: Silverware | C75: 2 | D75: Girl Scout set - Knife, Fork & Spoon | E75: 1 | G75: 0.00 | H75: 0.00 | I75: 0.00 | K75: 0.00 | M75: BP | N75: BackPack
A76: 1 | B76: SnowPeak Trek 900 | C76: 6 | D76: 30 oz pot and fry pan (Titanium) Approx 887 ml | E76: 1 | G76: 6.20 | H76: 0.39 | I76: 6.20 | K76: 0.00 | M76: BP | N76: BackPack
A77: 0 | B77: Soup Thermos | C77: 7 | D77: Empty Thermos | F77: 3 | G77: 0.00 | H77: 0.00 | I77: 0.00 | K77: 0.00 | M77: FP | N77: Food Pack / Barrel
A78: Cutting
A79: 0 | B79: Axe | C79: 11 | D79: Small Camp Axe | E79: 1 | G79: =IF(E79=1,A79*C79,0) -> 0.00 | H79: =G79/16 -> 0.00 | I79: =G79 -> 0.00 | K79: =IF(F79>=1,(A79*C79)/16,0) -> 0.00 | M79: BP | N79: =_xlfn.XLOOKUP($M79,$A$319:$A$336,$B$319:$B$336,"Not Found") -> BackPack
A80: 1 | B80: Saw | C80: 8 | D80: Pocket Boy Silky saw | F80: 3 | G80: =IF(E80=1,A80*C80,0) -> 0.00 | H80: =G80/16 -> 0.00 | I80: =G80 -> 0.00 | K80: =IF(F80>=1,(A80*C80)/16,0) -> 0.51 | M80: BP | N80: =_xlfn.XLOOKUP($M80,$A$319:$A$336,$B$319:$B$336,"Not Found") -> BackPack
A81: 0 | B81: Saw | C81: 13 | D81: Sven Camp Saw | E81: 1 | G81: 0.00 | H81: 0.00 | I81: 0.00 | K81: 0.00 | M81: BP | N81: =_xlfn.XLOOKUP($M81,$A$319:$A$336,$B$319:$B$336,"Not Found") -> BackPack
A82: Water:
A83: 0 | B83: Gal of water | C83: 128 | D83: 1 gal of water | E83: 1 | G83: 0.00 | H83: 0.00 | I83: 0.00 | K83: 0.00 | M83: BP | N83: =_xlfn.XLOOKUP($M83,$A$319:$A$336,$B$319:$B$336,"Not Found") -> BackPack
A84: 6 | B84: Liter of Water | C84: 35 | D84: 1 gal of water | E84: 1 | G84: =IF(E84=1,A84*C84,0) -> 211.22 | H84: =G84/16 -> 13.20 | I84: =G84 -> 211.22 | K84: =IF(F84>=1,(A84*C84)/16,0) -> 0.00 | M84: BP | N84: BackPack
A85: 0 | B85: Hydration System | C85: 6 | D85: Platypus Big Zip LP 3.0L empty | E85: 1 | G85: 0.00 | H85: 0.00 | I85: 0.00 | K85: 0.00 | M85: BP | N85: BackPack
A86: 1 | B86: Water Bottle | C86: 38 | D86: 32 Oz. Nalgene full (6.3 oz empty) | E86: 1 | G86: 38.20 | H86: 2.39 | I86: 38.20 | K86: 0.00 | M86: BP | N86: BackPack
A87: 0 | B87: Water Bottle | C87: 29 | D87: 22 Oz. LifeStraw Go bottle full (7.3 oz empty) | E87: 1 | G87: 0.00 | H87: 0.00 | I87: 0.00 | K87: 0.00 | M87: BP | N87: BackPack
A88: 0 | B88: Water treatment system | C88: 12 | D88: Platypus Gravity Works 4.0L empty | E88: 1 | G88: 0.00 | H88: 0.00 | I88: 0.00 | K88: 0.00 | M88: BP | N88: BackPack
A89: Personal Gear:
A90: Directional/Safety
A91: 1 | B91: Bivvy | C91: 4 | D91: SOL Bivvy | E91: 1 | G91: =IF(E91=1,A91*C91,0) -> 3.80 | H91: =G91/16 -> 0.24 | I91: =G91 -> 3.80 | K91: =IF(F91>=1,(A91*C91)/16,0) -> 0.00 | M91: DK | N91: =_xlfn.XLOOKUP($M91,$A$319:$A$336,$B$319:$B$336,"Not Found") -> Ditch Kit
A92: 1 | B92: Blue Whistle | C92: 1 | D92: Blue Whistle | E92: 1 | G92: =IF(E92=1,A92*C92,0) -> 0.80 | H92: =G92/16 -> 0.05 | I92: =G92 -> 0.80 | K92: =IF(F92>=1,(A92*C92)/16,0) -> 0.00 | M92: DK | N92: =_xlfn.XLOOKUP($M92,$A$319:$A$336,$B$319:$B$336,"Not Found") -> Ditch Kit
A93: 1 | B93: Clip-on Compas | C93: 1 | D93: TwinGage Clip-on Compas | E93: 1 | G93: 0.60 | H93: 0.04 | I93: 0.60 | K93: 0.00 | M93: DK | N93: =_xlfn.XLOOKUP($M93,$A$319:$A$336,$B$319:$B$336,"Not Found") -> Ditch Kit
A94: 1 | B94: Compass | C94: 1 | D94: Starter brand Compas | E94: 1 | G94: 0.60 | H94: 0.04 | I94: 0.60 | K94: 0.00 | M94: DK | N94: =_xlfn.XLOOKUP($M94,$A$319:$A$336,$B$319:$B$336,"Not Found") -> Ditch Kit
A95: 0 | B95: Compass | C95: 2 | D95: Water Filled Compass | E95: 1 | G95: 0.00 | H95: 0.00 | I95: 0.00 | K95: 0.00 | M95: DK
A96: 1 | B96: Emergency Blanket | C96: 2 | D96: Emergency Blanket for ditch kit and Use with Under-quilt/Air mattres | E96: 1 | G96: 1.80 | H96: 0.11 | I96: 1.80 | K96: 0.00 | M96: DK | N96: =_xlfn.XLOOKUP($M96,$A$319:$A$336,$B$319:$B$336,"Not Found") -> Ditch Kit
A97: 0 | B97: Garmin eTrex | C97: 7 | D97: Garmin eTrex GPS device - With 2 rechargeable batteries - AA | E97: 1 | G97: 0.00 | H97: 0.00 | I97: 0.00 | K97: 0.00 | M97: DK | N97: Ditch Kit
A98: 0 | B98: Map | C98: 3 | D98: Jeff's Waterproof Maps per section | E98: 1 | G98: 0.00 | H98: 0.00 | I98: 0.00 | K98: 0.00 | M98: DK | N98: Ditch Kit
A99: 0 | B99: Map | C99: 3 | D99: Quetico Waterproof map | E99: 1 | G99: =IF(E99=1,A99*C99,0) -> 0.00 | H99: =G99/16 -> 0.00 | I99: =G99 -> 0.00 | K99: =IF(F99>=1,(A99*C99)/16,0) -> 0.00 | M99: DK | N99: Ditch Kit
A100: 1 | B100: Spot PLD | C100: 6 | D100: Spot Personl Location device (with Batteries) | E100: 1 | G100: 6.00 | H100: 0.38 | I100: 6.00 | K100: 0.38 | M100: DK | N100: Ditch Kit
A101: 0 | B101: Whistle/compas/mirror | C101: 1 | D101: Whistle/compas/mirror | E101: 1 | G101: 0.00 | H101: 0.00 | I101: 0.00 | K101: 0.00 | M101: DK | N101: Ditch Kit
A102: 1 | B102: PFD | C102: 27 | D102: Chinook PFD | F102: 1 | G102: 0.00 | H102: 0.00 | I102: 0.00 | K102: 1.69 | M102: OP | N102: On Person
A103: 0 | B103: Boat Safety Kit | C103: 15 | D103: Fox 40 Boat Essential safety kit | F103: 3 | G103: =IF(E103=1,A103*C103,0) -> 0.00 | H103: =G103/16 -> 0.00 | I103: =G103 -> 0.00 | K103: =IF(F103>=1,(A103*C103)/16,0) -> 0.00 | M103: C | N103: Canoe
A104: Knife
A105: 0 | B105: Buck | C105: 7 | D105: Buck Sheath Knife | F105: 1 | G105: =IF(E105=1,A105*C105,0) -> 0.00 | H105: =G105/16 -> 0.00 | I105: =G105 -> 0.00 | K105: =IF(F105>=1,(A105*C105)/16,0) -> 0.00 | M105: OP | N105: =_xlfn.XLOOKUP($M105,$A$319:$A$336,$B$319:$B$336,"Not Found") -> On Person
A106: 0 | B106: Fillet | C106: 3 | D106: Fishing Fillet knife | F106: 3 | G106: =IF(E106=1,A106*C106,0) -> 0.00 | H106: =G106/16 -> 0.00 | I106: =G106 -> 0.00 | K106: =IF(F106>=1,(A106*C106)/16,0) -> 0.00 | M106: FG | N106: Fishing / Camera Gear Pack
A107: 1 | B107: Multi Tool | C107: 8 | D107: Multi Tool (Leatherman w/holster) | F107: 1 | G107: 0.00 | H107: 0.00 | I107: 0.00 | K107: 0.48 | M107: OP | N107: On Person
A108: 0 | B108: Multi Tool | C108: 7 | D108: Multi Tool (Gerber) | F108: 1 | G108: 0.00 | H108: 0.00 | I108: 0.00 | K108: 0.00 | M108: OP | N108: On Person
A109: 1 | B109: Swiss Army Knife | C109: 2 | D109: Swiss Army Knife | F109: 1 | G109: 0.00 | H109: 0.00 | I109: 0.00 | K109: 0.11 | M109: OP | N109: On Person
A110: 0 | B110: Whittlin' Jack | C110: 3 | D110: Whittlin' Jack pocket knife | E110: 1 | G110: 0.00 | H110: 0.00 | I110: 0.00 | K110: 0.00 | M110: BP | N110: BackPack
A111: Toiletries
A112: 1 | B112: Biodegradable soap | C112: 4 | D112: Campsuds | E112: 1 | G112: =IF(E112=1,A112*C112,0) -> 3.50 | H112: =G112/16 -> 0.22 | I112: =G112 -> 3.50 | K112: =IF(F112>=1,(A112*C112)/16,0) -> 0.00 | M112: BP | N112: =_xlfn.XLOOKUP($M112,$A$319:$A$336,$B$319:$B$336,"Not Found") -> BackPack
A113: 3 | B113: Flushable wipes | C113: 8 | D113: Cottonelle Wipes | E113: 1 | G113: =IF(E113=1,A113*C113,0) -> 25.20 | H113: =G113/16 -> 1.58 | I113: =G113 -> 25.20 | K113: =IF(F113>=1,(A113*C113)/16,0) -> 0.00 | M113: BP | N113: BackPack
A114: 1 | B114: Comb | C114: 0 | D114: Comb | F114: 1 | G114: 0.00 | H114: 0.00 | I114: 0.00 | K114: 0.01 | M114: OP | N114: On Person
A115: 1 | B115: Dental Floss | C115: 0 | D115: Dental Floss | E115: 1 | G115: 0.20 | H115: 0.01 | I115: 0.20 | K115: 0.00 | M115: BP | N115: BackPack
A116: 0 | B116: Deodorant | C116: 0 | D116: Flight sized deodorant | E116: 1 | G116: 0.00 | H116: 0.00 | I116: 0.00 | K116: 0.00 | M116: BP | N116: BackPack
A117: 60 | B117: Medications | C117: 1 | D117: One daily dose (both AM & PM) meds | E117: 1 | G117: 60.00 | H117: 3.75 | I117: 60.00 | K117: 0.00 | M117: DK | N117: Ditch Kit
A118: 1 | B118: Metal Mirror | C118: 1 | D118: Metal Mirror - Use it for grooming & as an emergency signal device | E118: 1 | G118: 1.30 | H118: 0.08 | I118: 1.30 | K118: 0.00 | M118: BP | N118: BackPack
A119: 1 | B119: Perscription Med | C119: 1 | D119: Nitrostat (Nitro for Heart emerg) | E119: 1 | G119: 0.50 | H119: 0.03 | I119: 0.50 | K119: 0.00 | M119: DK | N119: Ditch Kit
A120: 3 | B120: Razor | C120: 0 | D120: Bick Rasor | E120: 1 | G120: 0.60 | H120: 0.04 | I120: 0.60 | K120: 0.00 | M120: BP | N120: BackPack
A121: 2 | B121: Toilet paper | C121: 6 | D121: TP | E121: 1 | G121: 11.00 | H121: 0.69 | I121: 11.00 | K121: 0.00 | M121: DK | N121: Ditch Kit
A122: 0 | B122: Toothbrush | C122: 1 | D122: Tooth Brush / in case | E122: 1 | G122: 0.00 | H122: 0.00 | I122: 0.00 | K122: 0.00 | M122: BP | N122: BackPack
A123: 0 | B123: Toothpaste | C123: 4 | D123: Tube of Toothpaste | E123: 1 | G123: 0.00 | H123: 0.00 | I123: 0.00 | K123: 0.00 | M123: BP | N123: BackPack
A124: 2 | B124: Towel | C124: 2 | D124: Chamis towel | E124: 1 | G124: 3.60 | H124: 0.23 | I124: 3.60 | K124: 0.00 | M124: BP | N124: BackPack
A125: 1 | B125: Trowl | C125: 1 | D125: Cat hole trowl | E125: 1 | G125: =IF(E125=1,A125*C125,0) -> 1.00 | H125: =G125/16 -> 0.06 | I125: =G125 -> 1.00 | K125: =IF(F125>=1,(A125*C125)/16,0) -> 0.00 | M125: BP | N125: BackPack
A126: First Aid / Emergency
A127: 1 | B127: Duct Tape | C127: 3 | D127: Part of larger Duct Tape roll | E127: 1 | G127: =IF(E127=1,A127*C127,0) -> 2.80 | H127: =G127/16 -> 0.18 | I127: =G127 -> 2.80 | K127: =IF(F127>=1,(A127*C127)/16,0) -> 0.00 | M127: DK | N127: =_xlfn.XLOOKUP($M127,$A$319:$A$336,$B$319:$B$336,"Not Found") -> Ditch Kit
A128: 1 | B128: First aid kit | C128: 2 | D128: Coghlans - First Aid kit | E128: 1 | G128: 2.40 | H128: 0.15 | I128: 2.40 | K128: 0.00 | M128: DK | N128: Ditch Kit
A129: 1 | B129: Matches | C129: 1 | D129: box of small wooden matches | E129: 1 | G129: 0.90 | H129: 0.06 | I129: 0.90 | K129: 0.00 | M129: DK | N129: Ditch Kit
A130: 1 | B130: Moleskin | C130: 1 | D130: Three sheets of MoleSkin | E130: 1 | G130: 0.70 | H130: 0.04 | I130: 0.70 | K130: 0.00 | M130: DK | N130: Ditch Kit
A131: 1 | B131: Pain Meds | C131: 1 | D131: 12 Asprin & 6 Aleve | E131: 1 | G131: 0.50 | H131: 0.03 | I131: 0.50 | K131: 0.00 | M131: DK | N131: Ditch Kit
A132: 1 | B132: Thread | C132: 1 | D132: Waxed Thead - spool | E132: 1 | G132: 1.30 | H132: 0.08 | I132: 1.30 | K132: 0.00 | M132: DK | N132: Ditch Kit
A133: 1 | B133: Twine | C133: 1 | D133: Waxed Twine | E133: 1 | G133: 1.40 | H133: 0.09 | I133: 1.40 | K133: 0.00 | M133: DK | N133: Ditch Kit
A134: Rope / Line
A135: 1 | B135: Cord | C135: 5 | D135: 25 feet extra Para Cord | E135: 1 | G135: =IF(E135=1,A135*C135,0) -> 5.10 | H135: =G135/16 -> 0.32 | I135: =G135 -> 5.10 | K135: =IF(F135>=1,(A135*C135)/16,0) -> 0.00 | M135: DK | N135: =_xlfn.XLOOKUP($M135,$A$319:$A$336,$B$319:$B$336,"Not Found") -> Ditch Kit
A136: 0 | B136: Garbage bag | C136: 0 | D136: Large bag (10-1/2 x 12") | E136: 1 | G136: =IF(E136=1,A136*C136,0) -> 0.00 | H136: =G136/16 -> 0.00 | I136: =G136 -> 0.00 | K136: =IF(F136>=1,(A136*C136)/16,0) -> 0.00 | M136: DK | N136: =_xlfn.XLOOKUP($M136,$A$319:$A$336,$B$319:$B$336,"Not Found") -> Ditch Kit
A137: 0 | B137: Line | C137: 7 | D137: 100 ft. Paracord for Bear bag | E137: 1 | G137: 0.00 | H137: 0.00 | I137: 0.00 | K137: 0.00 | M137: DK | N137: =_xlfn.XLOOKUP($M137,$A$319:$A$336,$B$319:$B$336,"Not Found") -> Ditch Kit
A138: 0 | B138: Line | C138: 15 | D138: 100 ft. nylon rope for Bear Bag | E138: 1 | G138: 0.00 | H138: 0.00 | I138: 0.00 | K138: 0.00 | M138: DK | N138: =_xlfn.XLOOKUP($M138,$A$319:$A$336,$B$319:$B$336,"Not Found") -> Ditch Kit
A139: 0 | B139: Line | C139: 9 | D139: Throw Line ball of twine | E139: 1 | G139: 0.00 | H139: 0.00 | I139: 0.00 | K139: 0.00 | M139: DK | N139: =_xlfn.XLOOKUP($M139,$A$319:$A$336,$B$319:$B$336,"Not Found") -> Ditch Kit
A140: Light
A141: 1 | B141: Headlamp | C141: 1 | D141: Coleman Headlamp (with-out Batteries) | E141: 1 | G141: =IF(E141=1,A141*C141,0) -> 1.30 | H141: =G141/16 -> 0.08 | I141: =G141 -> 1.30 | K141: =IF(F141>=1,(A141*C141)/16,0) -> 0.00 | M141: PJ | N141: =_xlfn.XLOOKUP($M141,$A$319:$A$336,$B$319:$B$336,"Not Found") -> Sleeping Bag Stuff Sack
A142: 1 | B142: Headlamp | C142: 2 | D142: LuxPro Headlamp - Rechargeable (with cabel) | E142: 1 | G142: =IF(E142=1,A142*C142,0) -> 2.20 | H142: =G142/16 -> 0.14 | I142: =G142 -> 2.20 | K142: =IF(F142>=1,(A142*C142)/16,0) -> 0.00 | M142: PJ | N142: =_xlfn.XLOOKUP($M142,$A$319:$A$336,$B$319:$B$336,"Not Found") -> Sleeping Bag Stuff Sack
A143: 0 | B143: MagLite | C143: 4 | D143: Small MagLite (without Batteries) | E143: 1 | G143: 0.00 | H143: 0.00 | I143: 0.00 | K143: 0.00 | M143: PJ | N143: =_xlfn.XLOOKUP($M143,$A$319:$A$336,$B$319:$B$336,"Not Found") -> Sleeping Bag Stuff Sack
A144: Glasses
A145: 2 | B145: Reading glasses | C145: 1 | D145: 2X Reading Glasses from CVS | E145: 1 | G145: =IF(E145=1,A145*C145,0) -> 1.20 | H145: =G145/16 -> 0.08 | I145: =G145 -> 1.20 | K145: =IF(F145>=1,(A145*C145)/16,0) -> 0.00 | M145: BP | N145: =_xlfn.XLOOKUP($M145,$A$319:$A$336,$B$319:$B$336,"Not Found") -> BackPack
A146: 1 | B146: Sunglasses | C146: 1 | D146: Dwalt Shock resistant Sunglasses | F146: 1 | G146: 0.00 | H146: 0.00 | I146: 0.00 | K146: 0.07 | M146: OP | N146: =_xlfn.XLOOKUP($M146,$A$319:$A$336,$B$319:$B$336,"Not Found") -> On Person
A147: Batteries
A148: 0 | B148: AA Alkaline Batteries | C148: 1 | D148: Mag lite Batteries (AA Alkaline) | E148: 1 | G148: =IF(E148=1,A148*C148,0) -> 0.00 | H148: =G148/16 -> 0.00 | I148: =G148 -> 0.00 | K148: =IF(F148>=1,(A148*C148)/16,0) -> 0.00 | M148: RS | N148: =_xlfn.XLOOKUP($M148,$A$319:$A$336,$B$319:$B$336,"Not Found") -> Red Stuff Sack
A149: 0 | B149: AA Lithium Batteries | C149: 1 | D149: Mag lite/Garmin Batteries (AA Lithium) | E149: 1 | G149: 0.00 | H149: 0.00 | I149: 0.00 | K149: 0.00 | M149: BP | N149: BackPack
A150: 8 | B150: AAA Alkaline Batteries | C150: 0 | D150: Headlamp Batteries (AAA Alkaline) | E150: 1 | G150: 3.20 | H150: 0.20 | I150: 3.20 | K150: 0.00 | M150: BP | N150: BackPack
A151: 4 | B151: AAA Lithium Batteries | C151: 0 | D151: Spot & Headlamp Batteries (AAA Lithium) | E151: 1 | G151: 1.20 | H151: 0.08 | I151: 1.20 | K151: 0.00 | M151: BP | N151: BackPack
A152: 1 | B152: Charging cabel fro Samsung | C152: 1 | D152: Charging Cabel - USB/USB C | E152: 1 | G152: 1.10 | H152: 0.07 | I152: 1.10 | K152: 0.00 | M152: BP | N152: BackPack
A153: 3 | B153: LimeFuel - Aux battery pack | C153: 13 | D153: Limefuel Battery pack to recharge phone, Cannon and GoPro | E153: 1 | G153: 39.00 | H153: 2.44 | I153: 39.00 | K153: 0.00 | M153: RS | N153: Red Stuff Sack
A154: 1 | B154: Solar Charger | C154: 23 | D154: Big Blue Solar Charger | E154: 1 | G154: =IF(E154=1,A154*C154,0) -> 23.30 | H154: =G154/16 -> 1.46 | I154: =G154 -> 23.30 | K154: =IF(F154>=1,(A154*C154)/16,0) -> 0.00 | M154: RS | N154: Red Stuff Sack
A155: Accessories: | B155: Accessories:
A156: 2 | B156: Gloves | C156: 7 | D156: Gloves - Kombi WaterGuard - Set | F156: 1 | G156: =IF(E156=1,A156*C156,0) -> 0.00 | H156: =G156/16 -> 0.00 | I156: =G156 -> 0.00 | K156: =IF(F156>=1,(A156*C156)/16,0) -> 0.86 | M156: OP | N156: =_xlfn.XLOOKUP($M156,$A$319:$A$336,$B$319:$B$336,"Not Found") -> On Person
A157: 1 | B157: AquaSeal Patch Kit | C157: 1 | D157: AquaSeal Patch Kit | E157: 1 | G157: =IF(E157=1,A157*C157,0) -> 0.80 | H157: =G157/16 -> 0.05 | I157: =G157 -> 0.80 | K157: =IF(F157>=1,(A157*C157)/16,0) -> 0.00 | M157: DK | N157: Ditch Kit
A158: 0 | B158: Binoculars | C158: 12 | D158: 10x25 Binioculars | F158: 3 | G158: 0.00 | H158: 0.00 | I158: 0.00 | K158: 0.00 | M158: OG | N158: Other Gear
A159: 1 | B159: Bucket | C159: 4 | D159: Colapsable bucket | E159: 1 | G159: 4.00 | H159: 0.25 | I159: 4.00 | K159: 0.00 | M159: DK | N159: Ditch Kit
A160: 0 | B160: Camera | C160: 7 | D160: Nikon CoolPix L22 | E160: 1 | G160: 0.00 | H160: 0.00 | I160: 0.00 | K160: 0.00 | M160: RS | N160: Red Stuff Sack
A161: 0 | B161: Camera | C161: 6 | D161: GoPro Hero 3 camera w/small rechargeable battery | E161: 1 | G161: 0.00 | H161: 0.00 | I161: 0.00 | K161: 0.00 | M161: RS | N161: Red Stuff Sack
A162: 1 | B162: Camera | C162: 6 | D162: GoPro Hero 3 camera w/large rechargeable battery | F162: 1 | G162: 0.00 | H162: 0.00 | I162: 0.00 | K162: 0.36 | M162: RS | N162: Red Stuff Sack
A163: 1 | B163: Camera | C163: 10 | D163: Olympus Tough 6 camera w/ battery | F163: 1 | G163: =IF(E163=1,A163*C163,0) -> 0.00 | H163: =G163/16 -> 0.00 | I163: =G163 -> 0.00 | K163: =IF(F163>=1,(A163*C163)/16,0) -> 0.64 | M163: RS | N163: Red Stuff Sack
A164: 2 | B164: Camera Accessory | C164: 1 | D164: GoPro reg batteries | E164: 1 | G164: 1.80 | H164: 0.11 | I164: 1.80 | K164: 0.00 | M164: RS | N164: Red Stuff Sack
A165: 3 | B165: Camera Accessory | C165: 1 | D165: Olympus Tough reg batteries | E165: 1 | G165: =IF(E165=1,A165*C165,0) -> 2.70 | H165: =G165/16 -> 0.17 | I165: =G165 -> 2.70 | K165: =IF(F165>=1,(A165*C165)/16,0) -> 0.00 | M165: RS | N165: Red Stuff Sack
A166: 1 | B166: Camera Accessory | C166: 1 | D166: GoPro battery USB Charger | E166: 1 | G166: 0.90 | H166: 0.06 | I166: 0.90 | K166: 0.00 | M166: RS | N166: Red Stuff Sack
A167: 1 | B167: Camera Accessory | C167: 1 | D167: Olympus Tough battery USB Charger | E167: 1 | G167: =IF(E167=1,A167*C167,0) -> 0.90 | H167: =G167/16 -> 0.06 | I167: =G167 -> 0.90 | K167: =IF(F167>=1,(A167*C167)/16,0) -> 0.00 | M167: RS | N167: Red Stuff Sack
A168: 0 | B168: Camera Accessory | C168: 1 | D168: GoPro back for reg batteries | E168: 1 | G168: 0.00 | H168: 0.00 | I168: 0.00 | K168: 0.00 | M168: RS | N168: Red Stuff Sack
A169: 0 | B169: Camera Accessory | C169: 0 | D169: GoPro open back | E169: 1 | G169: 0.00 | H169: 0.00 | I169: 0.00 | K169: 0.00 | M169: RS | N169: Red Stuff Sack
A170: 0 | B170: Camera Accessory | C170: 13 | D170: Camera Mount | E170: 1 | G170: 0.00 | H170: 0.00 | I170: 0.00 | K170: 0.00 | M170: RS | N170: Red Stuff Sack
A171: 0 | B171: Camera Accessory | C171: 17 | D171: SLR Waterproof Case | F171: 2 | G171: 0.00 | H171: 0.00 | I171: 0.00 | K171: 0.00 | M171: C | N171: Canoe
A172: 0 | B172: Camera Accessory | C172: 2 | D172: SLR Rain Sleeve | F172: 2 | G172: 0.00 | H172: 0.00 | I172: 0.00 | K172: 0.00 | M172: FG | N172: Fishing / Camera Gear Pack
A173: 0 | B173: Camera | C173: 18 | D173: Cannon EOS T6 | F173: 2 | G173: 0.00 | H173: 0.00 | I173: 0.00 | K173: 0.00 | M173: FG | N173: Fishing / Camera Gear Pack
A174: 0 | B174: Camera lense 18-55 mm | C174: 8 | D174: Cannon 18-55 mm lense | F174: 2 | G174: 0.00 | H174: 0.00 | I174: 0.00 | K174: 0.00 | M174: FG | N174: Fishing / Camera Gear Pack
A175: 0 | B175: Camera lense 75-300 mm | C175: 18 | D175: Cannon 75-300 mm Lense | F175: 2 | G175: 0.00 | H175: 0.00 | I175: 0.00 | K175: 0.00 | M175: FG | N175: Fishing / Camera Gear Pack
A176: 0 | B176: Camera lense 50 mm | C176: 8 | D176: Cannon 50 mm Lense | F176: 2 | G176: 0.00 | H176: 0.00 | I176: 0.00 | K176: 0.00 | M176: FG | N176: Fishing / Camera Gear Pack
A177: 0 | B177: Camera lense 10-22 mm | C177: 16 | D177: Cannon 10-22 mm Lense | F177: 2 | G177: =IF(E177=1,A177*C177,0) -> 0.00 | H177: =G177/16 -> 0.00 | I177: =G177 -> 0.00 | K177: =IF(F177>=1,(A177*C177)/16,0) -> 0.00 | M177: FG | N177: Fishing / Camera Gear Pack
A178: 0 | B178: Camera Pack | C178: 31 | D178: Camera pack | F178: 2 | G178: 0.00 | H178: 0.00 | I178: 0.00 | K178: 0.00 | M178: FG | N178: Fishing / Camera Gear Pack
A179: 0 | B179: Camera Bag Plus | C179: 22 | D179: Camera case / 2 Aux Batteries / Charger | F179: 2 | G179: 0.00 | H179: 0.00 | I179: 0.00 | K179: 0.00 | M179: FG | N179: Fishing / Camera Gear Pack
A180: 0 | B180: Camera - 2 batteries and charger | C180: 6 | D180: Camera - 2 Aux Batteries & Charger | F180: 2 | G180: 0.00 | H180: 0.00 | I180: 0.00 | K180: 0.00 | M180: FG | N180: Fishing / Camera Gear Pack
A181: 0 | B181: Tripod | C181: 52 | D181: Geekoto Tripod | F181: 2 | G181: 0.00 | H181: 0.00 | I181: 0.00 | K181: 0.00 | M181: FG | N181: Fishing / Camera Gear Pack
A182: 1 | B182: Tripod | C182: 11 | D182: Ulanzi MT-22 Camera Tripod | F182: 2 | G182: =IF(E182=1,A182*C182,0) -> 0.00 | H182: =G182/16 -> 0.00 | I182: =G182 -> 0.00 | K182: =IF(F182>=1,(A182*C182)/16,0) -> 0.68 | M182: FG | N182: Fishing / Camera Gear Pack
A183: 0 | B183: Car Key | C183: 3 | D183: Keys - (Complete set - Acurra) | E183: 1 | G183: 0.00 | H183: 0.00 | I183: 0.00 | K183: 0.00 | M183: KC | N183: Key Chain
A184: 2 | B184: carabiners | C184: 3 | D184: Carabiners | E184: 1 | G184: 6.00 | H184: 0.38 | I184: 6.00 | K184: 0.00 | M184: DK | N184: Ditch Kit
A185: 0 | B185: Fire starter | C185: 1 | D185: Fire starter* .5 oz Wind & waterproof matches & stove should be enough.... | E185: 1 | G185: 0.00 | H185: 0.00 | I185: 0.00 | K185: 0.00 | M185: BP | N185: BackPack
A186: 1 | B186: Fire Stick | C186: 2 | D186: Magnesium Fire stick | E186: 1 | G186: 1.70 | H186: 0.11 | I186: 1.70 | K186: 0.00 | M186: DK | N186: Ditch Kit
A187: 0 | B187: GoPro straps | C187: 2 | D187: GoPro Wrist Strap | E187: 1 | G187: 0.00 | H187: 0.00 | I187: 0.00 | K187: 0.00 | M187: RS | N187: Red Stuff Sack
A188: 0 | B188: GoPro straps | C188: 1 | D188: GoPro Hat Clip | E188: 1 | G188: 0.00 | H188: 0.00 | I188: 0.00 | K188: 0.00 | M188: RS | N188: Red Stuff Sack
A189: 0 | B189: GoPro straps | C189: 7 | D189: GoPro Chest Strap | E189: 1 | G189: 0.00 | H189: 0.00 | I189: 0.00 | K189: 0.00 | M189: RS | N189: Red Stuff Sack
A190: 1 | B190: GoPro straps | C190: 3 | D190: GoPro Head Strap | E190: 1 | G190: 3.40 | H190: 0.21 | I190: 3.40 | K190: 0.00 | M190: FG | N190: Fishing / Camera Gear Pack
A191: 0 | B191: GoPro straps | C191: 6 | D191: GoPro Shoulder Strap | E191: 1 | G191: 0.00 | H191: 0.00 | I191: 0.00 | K191: 0.00 | M191: RS | N191: Red Stuff Sack
A192: 2 | B192: Insect repellent | C192: 2 | D192: Ultrathon with DEET in 1/4 oz. container | E192: 1 | G192: 4.40 | H192: 0.28 | I192: 4.40 | K192: 0.00 | M192: DK | N192: Ditch Kit
A193: 0 | B193: Marking Tape | C193: 1 | D193: Surveyor Tape | E193: 1 | G193: 0.00 | H193: 0.00 | I193: 0.00 | K193: 0.00 | M193: DK | N193: Ditch Kit
A194: 4 | B194: Note Pad | C194: 1 | D194: Note pad | E194: 1 | G194: 5.20 | H194: 0.33 | I194: 5.20 | K194: 0.00 | M194: DK | N194: Ditch Kit
A195: 1 | B195: Pencil | C195: 1 | D195: Small pencil | E195: 1 | G195: 1.00 | H195: 0.06 | I195: 1.00 | K195: 0.00 | M195: DK | N195: Ditch Kit
A196: 0 | B196: Rubber bands/pins | C196: 0 | D196: Rubber bands, safety pins, tape, needle & thread | E196: 1 | G196: 0.00 | H196: 0.00 | I196: 0.00 | K196: 0.00 | M196: DK | N196: Ditch Kit
A197: 1 | B197: Scouring pad | C197: 1 | D197: Scouring pad .1 oz Cut about 1/3 from the regular size | E197: 1 | G197: 1.00 | H197: 0.06 | I197: 1.00 | K197: 0.00 | M197: FP | N197: Food Pack / Barrel
A198: 1 | B198: Smart Phone | C198: 10 | D198: Smart Phone (Samsung S6 w/belt clip) | E198: 1 | G198: 9.50 | H198: 0.59 | I198: 9.50 | K198: 0.00 | M198: RS | N198: Red Stuff Sack
A199: 0 | B199: Straps | C199: 1 | D199: Bungee loops to tie items to Canoe | F199: 2 | G199: 0.00 | H199: 0.00 | I199: 0.00 | K199: 0.00 | M199: OG | N199: Other Gear
A200: 1 | B200: Set of Wire Ties | C200: 2 | D200: Gear ties for canoe 8 assorted ties | F200: 2 | G200: =IF(E200=1,A200*C200,0) -> 0.00 | H200: =G200/16 -> 0.00 | I200: =G200 -> 0.00 | K200: =IF(F200>=1,(A200*C200)/16,0) -> 0.13 | M200: C | N200: Canoe
... 128 more rows

Sheet Packing list
A1: BackPack | C1: Sleeping bag dry bag | E1: Red Stuff Sack | G1: Ditch Kit | I1: Medium Compression bag | K1: Small Compression Sack | M1: XX Small Compression Sack | O1: Blue Stuff sack | Q1: Orange Stuff sack | S1: Bear Bag - Food Pack/Barrel | U1: Fishing gear | W1: Trip Bag (Small suit case/day pack) | Y1: Wallet | AA1: Key Chain | AC1: Other Gear | AE1: On Person | AG1: Canoe | AI1: Incorrectly coded | AK1: Total Back Pack weight
A2: =(A3/16) -> 23.07 Lbs | C2: =(C3/16) -> 3.51 Lbs | E2: =(E3/16) -> 2.73 Lbs | G2: =(G3/16) -> 4.24 Lbs | I2: =(I3/16) -> 3.74 Lbs | K2: =(K3/16) -> 3.49 Lbs | M2: =(M3/16) -> 0.11 Lbs | O2: =(O3/16) -> 0.21 Lbs | Q2: =(Q3/16) -> 0.41 Lbs | S2: =(S3/16) -> 3.79 Lbs | U2: =(U3/16) -> 9.41 Lbs | W2: =(W3/16) -> 4.27 Lbs | Y2: =(Y3/16) -> 0.03 Lbs | AA2: =(AA3/16) -> 0.00 Lbs | AC2: =(AC3/16) -> 0.00 Lbs | AE2: =(AE3/16) -> 5.91 Lbs | AG2: =(AG3/16) -> 0.24 Lbs | AI2: =(AI3/16) -> 0.00 Lbs | AK2: =(AK3/16) -> 41.54 Lbs
A3: 369.05 Oz. | C3: 56.20 Oz. | E3: 43.60 Oz. | G3: 67.90 Oz. | I3: 59.80 Oz. | K3: 55.90 Oz. | M3: 1.8 | O3: 3.4 | Q3: 6.50 Oz. | S3: 60.60 Oz. | U3: 150.50 Oz. | W3: 68.30 Oz. | Y3: 0.50 Oz. | AE3: 94.50 Oz. | AG3: 3.80 Oz. | AK3: =SUM(A3:Q3, Y3, AA3, AC3) -> 664.65 Oz.
A4: (1) 55 L Earth Pack | C4: (1) Wool Mummy bag - 3.5 lbs | E4: (2) Limefuel Battery pack to recharge phone, Cannon and GoPro | G4: (1) SOL Bivvy | I4: (1) Med Sea to Summit Dry Compression Sac | K4: (1) Small Sea to Summit Dry Compression Sac | M4: (1) 2X Small Sea to Summit Dry Compression Sac | O4: (1) Blue Dry Bag | Q4: (1) Orange Dry Bag | S4: (1) 32 L Earth Pack | U4: (1) Fishing Fillet knife | W4: (1) Hooded Sweat shirt - Algonquin | Y4: (1) Wallet - Pared down (Approx weight) | AE4: (1) Chinook PFD | AG4: (1) SLR Rain Sleeve
A5: (1) The FitLife walking sticks (Carbon - Pair - No baskets) | C5: (1) LuxPro Headlamp - Rechargeable (with cabel) | E5: (1) GoPro Hero 3 camera w/large rechargeable battery | G5: (1) Blue Whistle | I5: (1) Ice Breaker BodyFit 200 Shirt | K5: (1) Hennessey SiNylon tarp - Hex Fly + Snake Skins - Hammock cover | S5: (1) Camp Oven - Old BSA Mess Kit | U5: (1) Cannon EOS T6 | W5: (1) IBM Surface | AE5: (1) Multi Tool (Leatherman w/holster) | AG5: (1) Gear ties for canoe 8 assorted ties
A6: (1) Hennessey Ultra-Light Hammock, with stuff sack but NO Tarp | E6: (2) GoPro reg batteries | G6: (1) TwinGage Clip-on Compas | I6: (2) Columbia Bahama Shirt | K6: (1) Hennessey SiNylon tarp - Hex Fly + Snake Skins - Camp Tarp | S6: (1) Copper grill Mat (ea.) (I have 5) | U6: (1) Cannon 18-55 mm lense | W6: (1) Passport | AE6: (1) Swiss Army Knife
A7: (1) Hammock Hanging Hardware (2 bieners & 4 rap rings) | E7: (1) GoPro back for reg batteries | G7: (1) Starter brand Compas | I7: (2) Daily Socks | K7: (1) Cotton Short sleeve shirt - Algonquin Tee | S7: (1) Scouring pad .1 oz Cut about 1/3 from the regular size | U7: (1) Cannon 75-300 mm Lense | W7: (3) Travel Cloths | AE7: (1) Comb
A8: (1) Rallt Tree hammock hanging straps long - set of 2 straps | E8: (1) Smart Phone (Samsung S6 w/belt clip) | G8: (1) Emergency Blanket for ditch kit and Use with Under-quilt/Air mattres | I8: (2) No label Quick Dry Pant - 32 waist | U8: (1) Cannon 50 mm Lense | W8: (1) Travel Toiletries | AE8: (1) Dwalt Shock resistant Sunglasses
A9: (10) Tent Stake(s) | G9: (1) Quetico Waterproof map | I9: (2) Underwear | U9: (1) Camera pack | W9: (1) Travel Towel | AE9: (1) Daily Socks - Worn
A10: (1) UnderCover for Hammock | G10: (1) Spot Personl Location device (with Batteries) | U10: (1) Camera - 2 Aux Batteries & Charger | AE10: (1) RailRiders, Adventure Khakis pants
A11: (1) Rain Gear (Pants) | G11: (7) One daily dose (both AM & PM) meds | U11: (1) GoPro Head Strap | AE11: (1) Web Belt
A12: (1) Rain Gear (Top) Red Ledge jacket | G12: (2) TP | U12: (1) Large Fish Net | AE12: (1) Underwear - Worn
A13: (1) MSR WhisperLite Stove | G13: (1) Part of larger Duct Tape roll | U13: (1) Fly Reel - 8 Wgt - Sinking | AE13: (1) Ecco Water Sandels
A14: (1) Emberlit-UL Backpacking stove | G14: (1) Coghlans - First Aid kit | U14: (1) Spinning Reel - Stampede | AE14: (1) Red Head brand wide brim Hat
A15: (1) Titanium Wind Screen | G15: (3) box of small wooden matches | U15: (1) Fly Rod - 8 Wgt | AE15: (1) Jacket - Nike Therma-fit
A16: (2) 20 Fl. Oz. MSR Fuel Bottles - Full | G16: (1) Three sheets of MoleSkin | U16: (1) Spinning Rod - Stampede
A17: (4) Chop Sticks | G17: (1) 12 Asprin & 6 Aleve | U17: (1) Spoons/Flies/Lures … In PFD
A18: (1) GSI Personal Java Press | G18: (1) Waxed Thead - spool
A19: (1) Small Camp Axe | G19: (1) Waxed Twine
A20: (1) Pocket Boy Silky saw | G20: (1) 25 feet extra Para Cord
A21: (1) 22 Oz. LifeStraw Go bottle full (7.3 oz empty) | G21: (1) AquaSeal Patch Kit
A22: (1) Platypus Gravity Works 4.0L empty | G22: (1) Colapsable bucket
A23: (1) Campsuds | G23: (2) Carabiners
A24: (1) Dental Floss | G24: (1) Magnesium Fire stick
A25: (1) Metal Mirror - Use it for grooming & as an emergency signal device | G25: (1) Mosquito Head Net
A26: (1) Tooth Brush / in case | G26: (1) Mosquito Shirt
A27: (1) Tube of Toothpaste | G27: (1) Toque
A28: (2) Chamis towel
A29: (1) 2X Reading Glasses from CVS
A30: (3) Mag lite/Garmin Batteries (AA Lithium)
A31: (1) Charging Cabel - USB/USB C
A32: (1) Geekoto Tripod
A33: (1) Ortho feet Sneaker

Sheet Final Check
A1: Trip bag - packed
A2: BackPack - Packed
A3: Fishing Gear
A4: Cooler
A5: Trip Snacks
A6: PFD(s)
A7: Trip Water bottles
A8: Spot (if not in Pack)
A9: GoPro (if not in Pack)
A12: On-Person
A13: Passport
A14: Knife
A15: Stripped down wallet
A16: Stripped key chain
A17: Phone
A18: Comb
A19: Sunglasses
A20: Reading glasses
A21: Jacket
A22: Ipad (if not in Trip Bag)
